Workbook

Sheet Start
B1: ABOUT THIS TEMPLATE
B2: Use this template to create a Channel Marketing Budget.
B3: Enter Anticipated Sales for each month and other details in tables.
B4: Totals are auto calculated and sparklines are updated.
B5: Note:
B6: Additional instructions have been provided in column A in CHANNEL MARKETING BUDGET worksheet. This text has been intentionally hidden. To remove text, select column A, then select DELETE. To unhide text, select column A, then change font color.
B7: To learn more about tables, press SHIFT and then F10 within a table, select the TABLE option, and then select ALTERNATIVE TEXT.

Sheet Channel Marketing Budget
C2: Rate | D2: Month 1 | E2: Month 2 | F2: Month 3 | G2: Month 4 | H2: Month 5 | I2: Month 6 | J2: Month 7 | K2: Month 8 | L2: Month 9 | M2: Month 10 | N2: Month 11 | O2: Month 12 | Q2: Total
B3: ANTICIPATED SALES TOTAL $(000) | D3: 750 | E3: 200 | F3: 500 | G3: 1,500 | H3: 1,200 | I3: 1,500 | J3: 1,500 | K3: 1,800 | L3: 2,000 | M3: 2,000 | N3: 2,000 | O3: 2,000 | Q3: =SUM(D3:O3) -> 9,000
A4: Enter details in Personnel table starting in cell at right. Personnel Total for each month is auto calculated at the table-end and annual Total in cell Q9. Sparkline is updated in cell S9. Next instruction is in cell A10. | B4: Personnel Items | C4: Rate | D4: Month 1 | E4: Month 2 | F4: Month 3 | G4: Month 4 | H4: Month 5 | I4: Month 6 | J4: Month 7 | K4: Month 8 | L4: Month 9 | M4: Month 10 | N4: Month 11 | O4: Month 12
B5: PERSONNEL (% OF TOTAL SALES) | D5: =D11+D36+D44+D51 -> 110% | E5: 110% | F5: =F11+F36+F44+F51 -> 110% | G5: 110% | H5: 110% | I5: 110% | J5: 110% | K5: 110% | L5: 85% | M5: 85% | N5: 85% | O5: 85%
B6: Human Resources - Headcount | C6: 5 | D6: =+$C$6 -> 5 | E6: 5 | F6: 5 | G6: 5 | H6: 5 | I6: 5 | J6: 5 | K6: 5 | L6: 5 | M6: 5 | N6: 5 | O6: 5
B7: Human Resources - Cost | D7: =$C$6*D6 -> 25.00 | E7: 25.00 | F7: 25.00 | G7: 25.00 | H7: 25.00 | I7: 25.00 | J7: 25.00 | K7: 25.00 | L7: 25.00 | M7: 25.00 | N7: 25.00 | O7: 25.00 | Q7: =SUM('Channel Marketing Budget'!$D7:$O7) -> 300.00
B8: Commission | C8: 0.10% | D8: =D3*$C$8 -> 0.75 | E8: 0.20 | F8: 0.50 | G8: 1.50 | H8: 1.20 | I8: 1.50 | J8: 1.50 | K8: 1.80 | L8: 2.00 | M8: 2.00 | N8: 2.00 | O8: 2.00 | Q8: =SUM('Channel Marketing Budget'!$D8:$O8) -> 16.95
B9: Personnel Total $(000) | D9: =SUM(D7:D8) -> 25.75 | E9: =SUM(E7:E8) -> 25.20 | F9: 25.50 | G9: 26.50 | H9: 26.20 | I9: 26.50 | J9: 26.50 | K9: 26.80 | L9: 27.00 | M9: 27.00 | N9: 27.00 | O9: 27.00 | Q9: =SUM(Q7:Q8) -> 316.95
B10: DIRECT MARKETING ITEMS | C10: Rate | D10: Month 1 | E10: Month 2 | F10: Month 3 | G10: Month 4 | H10: Month 5 | I10: Month 6 | J10: Month 7 | K10: Month 8 | L10: Month 9 | M10: Month 10 | N10: Month 11 | O10: Month 12
B11: DIRECT MARKETING (% OF TOTAL SALES) | D11: 100% | E11: 100% | F11: 75% | G11: 40% | H11: 33% | I11: 25% | J11: 20% | K11: 10% | L11: 5% | M11: 5% | N11: 5% | O11: 5%
B12: Telemarketing (% of Direct Sales) | D12: 100% | E12: 50% | F12: 50% | G12: 50% | H12: 50% | I12: 50% | J12: 50% | K12: 50% | L12: 50% | M12: 50% | N12: 50% | O12: 50%
B13: Human Resources - Headcount | C13: 3 | D13: =$C$13*D12 -> 3 | E13: 1.5 | F13: 1.5 | G13: 1.5 | H13: 1.5 | I13: 1.5 | J13: 1.5 | K13: 1.5 | L13: 1.5 | M13: 1.5 | N13: 1.5 | O13: 1.5 | Q13: =SUM('Channel Marketing Budget'!$D13:$O13) -> 19.50
B14: Infrastructure Support | D14: 25 | E14: 10 | F14: 25 | G14: 10 | H14: 25 | I14: 10 | J14: 25 | K14: 10 | L14: 25 | M14: 10 | N14: 25 | O14: 10 | Q14: =SUM('Channel Marketing Budget'!$D14:$O14) -> 210.00
B15: Commission | C15: 0.10% | D15: =$C$15*D3*D11*D12 -> 0.75 | E15: 0.10 | F15: 0.19 | G15: 0.30 | H15: 0.20 | I15: 0.19 | J15: 0.15 | K15: 0.09 | L15: 0.05 | M15: 0.05 | N15: 0.05 | O15: 0.05 | Q15: =SUM('Channel Marketing Budget'!$D15:$O15) -> 2.16
B16: Training | D16: 25 | E16: 10 | F16: 25 | G16: 10 | H16: 25 | I16: 10 | J16: 25 | K16: 10 | L16: 25 | M16: 10 | N16: 25 | O16: 10 | Q16: =SUM('Channel Marketing Budget'!$D16:$O16) -> 210.00
B17: Telemarketing Total $(000) | D17: =SUM(D13:D16) -> 53.75 | E17: =SUM(E13:E16) -> 21.60 | F17: =SUM(F13:F16) -> 51.69 | G17: 21.80 | H17: 51.70 | I17: 21.69 | J17: 51.65 | K17: 21.59 | L17: 51.55 | M17: 21.55 | N17: 51.55 | O17: 21.55 | Q17: =SUM(Q13:Q16) -> 441.66
B18: INTERNET MARKETING ITEMS | C18: Rate | D18: Month 1 | E18: Month 2 | F18: Month 3 | G18: Month 4 | H18: Month 5 | I18: Month 6 | J18: Month 7 | K18: Month 8 | L18: Month 9 | M18: Month 10 | N18: Month 11 | O18: Month 12
B19: INTERNET MARKETING (% OF DIRECT SALES) | D19: 25% | E19: 25% | F19: 25% | G19: 25% | H19: 25% | I19: 25% | J19: 25% | K19: 25% | L19: 25% | M19: 25% | N19: 25% | O19: 25%
B20: Human Resources - Headcount | C20: 1 | D20: =$C$20*D19 -> 0.25 | E20: 0.25 | F20: 0.25 | G20: 0.25 | H20: 0.25 | I20: 0.25 | J20: 0.25 | K20: 0.25 | L20: 0.25 | M20: 0.25 | N20: 0.25 | O20: 0.25 | Q20: =SUM('Channel Marketing Budget'!$D20:$O20) -> 3.00
B21: Website Development (one-time cost) | D21: 500 | Q21: =SUM('Channel Marketing Budget'!$D21:$O21) -> 500.00
B22: Hosting | D22: 10 | E22: 10 | F22: 10 | G22: 10 | H22: 10 | I22: 10 | J22: 10 | K22: 10 | L22: 10 | M22: 10 | N22: 10 | O22: 10 | Q22: =SUM('Channel Marketing Budget'!$D22:$O22) -> 120.00
B23: Support & Maintenance | D23: 25 | N23: 25 | Q23: =SUM('Channel Marketing Budget'!$D23:$O23) -> 50.00
B24: Facebook | E24: 100 | G24: 100 | I24: 100 | K24: 100 | M24: 100 | O24: 100 | Q24: =SUM('Channel Marketing Budget'!$D24:$O24) -> 600.00
B25: Twitter | D25: 100 | F25: 100 | H25: 100 | J25: 100 | L25: 100 | N25: 100 | Q25: =SUM('Channel Marketing Budget'!$D25:$O25) -> 600.00
B26: YouTube | E26: 100 | G26: 100 | H26: 100 | L26: 100 | M26: 100 | O26: 100 | Q26: =SUM('Channel Marketing Budget'!$D26:$O26) -> 600.00
B27: Internet Marketing Total $(000) | D27: =SUM(D20:D23) -> 535.25 | E27: 10.25 | F27: 10.25 | G27: 10.25 | H27: 10.25 | I27: 10.25 | J27: 10.25 | K27: 10.25 | L27: 10.25 | M27: 10.25 | N27: 35.25 | O27: 10.25 | Q27: =SUM(Q20:Q23) -> 673.00
B28: DIRECT MAIL ITEMS | C28: Rate | D28: Month 1 | E28: Month 2 | F28: Month 3 | G28: Month 4 | H28: Month 5 | I28: Month 6 | J28: Month 7 | K28: Month 8 | L28: Month 9 | M28: Month 10 | N28: Month 11 | O28: Month 12
B29: DIRECT MAIL (% OF DIRECT SALES)
B30: Human Resources - Cost | Q30: =SUM('Channel Marketing Budget'!$D30:$O30) -> 0.00
B31: Material | D31: 1000 | E31: 1000 | F31: 1000 | G31: 1000 | H31: 1000 | I31: 1000 | J31: 1000 | K31: 1000 | L31: 1000 | M31: 1000 | N31: 1000 | O31: 1000 | Q31: =SUM('Channel Marketing Budget'!$D31:$O31) -> 12,000.00
B32: Postage | D32: 250 | E32: 250 | F32: 250 | G32: 250 | H32: 250 | I32: 250 | J32: 250 | K32: 250 | L32: 250 | M32: 250 | N32: 250 | O32: 250 | Q32: =SUM('Channel Marketing Budget'!$D32:$O32) -> 3,000.00
B33: Direct Mail Total $(000) | D33: =SUM(D30:D32) -> 1,250.00 | E33: =SUM(E30:E32) -> 1,250.00 | F33: 1,250.00 | G33: 1,250.00 | H33: 1,250.00 | I33: 1,250.00 | J33: 1,250.00 | K33: 1,250.00 | L33: 1,250.00 | M33: 1,250.00 | N33: 1,250.00 | O33: 1,250.00 | Q33: =SUM(Q30:Q32) -> 15,000.00
B34: Direct Marketing Total $(000) | D34: =SUM(DirectMail[[#Totals],[Month 1]],InternetMarketing[[#Totals],[Month 1]],DirectMarketing[[#Totals],[Month 1]]) -> 1,839.00 | E34: =SUM(DirectMail[[#Totals],[Month 2]],InternetMarketing[[#Totals],[Month 2]],DirectMarketing[[#Totals],[Month 2]]) -> 1,281.85 | F34: =SUM(DirectMail[[#Totals],[Month 3]],InternetMarketing[[#Totals],[Month 3]],DirectMarketing[[#Totals],[Month 3]]) -> 1,311.94 | G34: =SUM(DirectMail[[#Totals],[Month 4]],InternetMarketing[[#Totals],[Month 4]],DirectMarketing[[#Totals],[Month 4]]) -> 1,282.05 | H34: =SUM(DirectMail[[#Totals],[Month 5]],InternetMarketing[[#Totals],[Month 5]],DirectMarketing[[#Totals],[Month 5]]) -> 1,311.95 | I34: =SUM(DirectMail[[#Totals],[Month 6]],InternetMarketing[[#Totals],[Month 6]],DirectMarketing[[#Totals],[Month 6]]) -> 1,281.94 | J34: =SUM(DirectMail[[#Totals],[Month 7]],InternetMarketing[[#Totals],[Month 7]],DirectMarketing[[#Totals],[Month 7]]) -> 1,311.90 | K34: =SUM(DirectMail[[#Totals],[Month 8]],InternetMarketing[[#Totals],[Month 8]],DirectMarketing[[#Totals],[Month 8]]) -> 1,281.84 | L34: =SUM(DirectMail[[#Totals],[Month 9]],InternetMarketing[[#Totals],[Month 9]],DirectMarketing[[#Totals],[Month 9]]) -> 1,311.80 | M34: =SUM(DirectMail[[#Totals],[Month 10]],InternetMarketing[[#Totals],[Month 10]],DirectMarketing[[#Totals],[Month 10]]) -> 1,281.80 | N34: =SUM(DirectMail[[#Totals],[Month 11]],InternetMarketing[[#Totals],[Month 11]],DirectMarketing[[#Totals],[Month 11]]) -> 1,336.80 | O34: =SUM(DirectMail[[#Totals],[Month 12]],InternetMarketing[[#Totals],[Month 12]],DirectMarketing[[#Totals],[Month 12]]) -> 1,281.80 | Q34: =SUM(Q33,Q27,Q17,Q9) -> 16,431.61
B35: AGENT/BROKER ITEMS | C35: Rate | D35: Month 1 | E35: Month 2 | F35: Month 3 | G35: Month 4 | H35: Month 5 | I35: Month 6 | J35: Month 7 | K35: Month 8 | L35: Month 9 | M35: Month 10 | N35: Month 11 | O35: Month 12
B36: AGENT/BROKER (% OF TOTAL SALES) | D36: 10% | E36: 10% | F36: 10% | G36: 10% | H36: 10% | I36: 10% | J36: 10% | K36: 10% | L36: 10% | M36: 10% | N36: 10% | O36: 10%
B37: Communication | D37: 50 | E37: 50 | F37: 50 | G37: 50 | H37: 50 | I37: 50 | J37: 50 | K37: 50 | L37: 50 | M37: 50 | N37: 50 | O37: 50 | Q37: =SUM('Channel Marketing Budget'!$D37:$O37) -> 600.00
B38: Training | D38: 250.00 | E38: 250.00 | F38: 250.00 | G38: 250.00 | H38: 250.00 | I38: 250.00 | J38: 250.00 | K38: 250.00 | L38: 250.00 | M38: 250.00 | N38: 250.00 | O38: 250.00 | Q38: =SUM('Channel Marketing Budget'!$D38:$O38) -> 3,000.00
B39: Promotions | D39: 600.00 | E39: 600.00 | F39: 600.00 | G39: 600.00 | H39: 600.00 | I39: 600.00 | J39: 600.00 | K39: 600.00 | L39: 600.00 | M39: 600.00 | N39: 600.00 | O39: 600.00 | Q39: =SUM('Channel Marketing Budget'!$D39:$O39) -> 7,200.00
B40: Discounts | C40: 10.00% | D40: =D3*D36*$C$40 -> 7.50 | E40: 2.00 | F40: 5.00 | G40: 15.00 | H40: 12.00 | I40: 15.00 | J40: 15.00 | K40: 18.00 | L40: 20.00 | M40: 20.00 | N40: 20.00 | O40: 20.00 | Q40: =SUM('Channel Marketing Budget'!$D40:$O40) -> 169.50
B41: Commission (% of Agent's Sales) | C41: 10.00% | D41: =D3*D36*$C$41 -> 7.50 | E41: 2.00 | F41: 5.00 | G41: 15.00 | H41: 12.00 | I41: 15.00 | J41: 15.00 | K41: 18.00 | L41: 20.00 | M41: 20.00 | N41: 20.00 | O41: 20.00 | Q41: =SUM('Channel Marketing Budget'!$D41:$O41) -> 169.50
B42: Agent/Broker Total $(000) | D42: =SUM(D37:D41) -> 915.00 | E42: =SUM(E37:E41) -> 904.00 | F42: 910.00 | G42: 930.00 | H42: 924.00 | I42: 930.00 | J42: 930.00 | K42: 936.00 | L42: 940.00 | M42: 940.00 | N42: 940.00 | O42: 940.00 | Q42: =SUM(Q37:Q41) -> 11,139.00
B43: DISTRIBUTORS ITEMS | C43: Rate | D43: Month 1 | E43: Month 2 | F43: Month 3 | G43: Month 4 | H43: Month 5 | I43: Month 6 | J43: Month 7 | K43: Month 8 | L43: Month 9 | M43: Month 10 | N43: Month 11 | O43: Month 12
B44: DISTRIBUTORS (% OF TOTAL SALES) | D44: 0% | E44: 0% | F44: 0% | G44: 0% | H44: 0% | I44: 15% | J44: 20% | K44: 40% | L44: 40% | M44: 40% | N44: 40% | O44: 40%
B45: Communication | D45: 50 | E45: 50 | F45: 50 | G45: 50 | H45: 50 | I45: 50 | J45: 50 | K45: 50 | L45: 50 | M45: 50 | N45: 50 | O45: 50 | Q45: =SUM('Channel Marketing Budget'!$D45:$O45) -> 600.00
B46: Training | D46: 250.00 | E46: 250.00 | F46: 250.00 | G46: 250.00 | H46: 250.00 | I46: 250.00 | J46: 250.00 | K46: 250.00 | L46: 250.00 | M46: 250.00 | N46: 250.00 | O46: 250.00 | Q46: =SUM(Dstributors[[#This Row],[Month 1]:[Month 12]]) -> 3,000.00
B47: Promotions | D47: 600.00 | E47: 600.00 | F47: 600.00 | G47: 600.00 | H47: 600.00 | I47: 600.00 | J47: 600.00 | K47: 600.00 | L47: 600.00 | M47: 600.00 | N47: 600.00 | O47: 600.00 | Q47: =SUM(Dstributors[[#This Row],[Month 1]:[Month 12]]) -> 7,200.00
B48: Commission/Discounts (% of Distributors' Sales) | C48: 15.00% | D48: =D3*D44*$C$48 -> 0 | E48: 0 | F48: 0 | G48: 0 | H48: 0 | I48: 33.75 | J48: 45 | K48: 108 | L48: 120 | M48: 120 | N48: 120 | O48: 120 | Q48: =SUM(Dstributors[[#This Row],[Month 1]:[Month 12]]) -> 666.75
B49: Distributor Total $(000) | D49: =SUM(D45:D48) -> 900.00 | E49: =SUM(E45:E48) -> 900.00 | F49: 900.00 | G49: 900.00 | H49: 900.00 | I49: 933.75 | J49: 945.00 | K49: 1,008.00 | L49: 1,020.00 | M49: 1,020.00 | N49: 1,020.00 | O49: 1,020.00 | Q49: =SUM(Q45:Q48) -> 11,466.75
B50: RETAIL ITEMS | C50: Rate | D50: Month 1 | E50: Month 2 | F50: Month 3 | G50: Month 4 | H50: Month 5 | I50: Month 6 | J50: Month 7 | K50: Month 8 | L50: Month 9 | M50: Month 10 | N50: Month 11 | O50: Month 12
B51: RETAILER (% OF TOTAL SALES) | D51: 0% | E51: 0% | F51: 25% | G51: 60% | H51: 67% | I51: 60% | J51: 60% | K51: 50% | L51: 30% | M51: 30% | N51: 30% | O51: 30%
B52: Communication | D52: 50 | E52: 50 | F52: 50 | G52: 50 | H52: 50 | I52: 50 | J52: 50 | K52: 50 | L52: 50 | M52: 50 | N52: 50 | O52: 50
B53: Training | D53: 250.00 | E53: 250.00 | F53: 250.00 | G53: 250.00 | H53: 250.00 | I53: 250.00 | J53: 250.00 | K53: 250.00 | L53: 250.00 | M53: 250.00 | N53: 250.00 | O53: 250.00 | Q53: =SUM('Channel Marketing Budget'!$D52:$O52) -> 600.00
B54: Promotions | D54: 600.00 | E54: 600.00 | F54: 600.00 | G54: 600.00 | H54: 600.00 | I54: 600.00 | J54: 600.00 | K54: 600.00 | L54: 600.00 | M54: 600.00 | N54: 600.00 | O54: 600.00 | Q54: =SUM('Channel Marketing Budget'!$D53:$O53) -> 3,000.00
B55: Commission/Discounts (% of Retail Sales) | C55: 10.00% | D55: =D3*D51*$C$55 -> 0 | E55: 0 | F55: 12.5 | G55: 90 | H55: 80.4 | I55: 90 | J55: 90 | K55: 90 | L55: 60 | M55: 60 | N55: 60 | O55: 60 | Q55: =SUM('Channel Marketing Budget'!$D55:$O55) -> 692.90
B56: Retailer Total $(000) | D56: =SUM(D52:D55) -> 900.00 | E56: =SUM(E52:E55) -> 900.00 | F56: 912.50 | G56: 990.00 | H56: 980.40 | I56: 990.00 | J56: 990.00 | K56: 990.00 | L56: 960.00 | M56: 960.00 | N56: 960.00 | O56: 960.00 | Q56: =SUM(Q53:Q55) -> 4,292.90
B57: CUSTOMER ACQUISTION & RETENTION (CAR) ITEMS | C57: Rate | D57: Month 1 | E57: Month 2 | F57: Month 3 | G57: Month 4 | H57: Month 5 | I57: Month 6 | J57: Month 7 | K57: Month 8 | L57: Month 9 | M57: Month 10 | N57: Month 11 | O57: Month 12
B58: CUSTOMER ACQUISITION & RETENTION (CAR)
B59: Human Resources | D59: 50 | E59: 50 | F59: 50 | G59: 50 | H59: 50 | I59: 50 | J59: 50 | K59: 50 | L59: 50 | M59: 50 | N59: 50 | O59: 50 | Q59: =SUM('Channel Marketing Budget'!$D59:$O59) -> 600.00
B60: Communications | D60: 250.00 | E60: 250.00 | F60: 250.00 | G60: 250.00 | H60: 250.00 | I60: 250.00 | J60: 250.00 | K60: 250.00 | L60: 250.00 | M60: 250.00 | N60: 250.00 | O60: 250.00 | Q60: =SUM('Channel Marketing Budget'!$D60:$O60) -> 3,000.00
B61: Promotions/Coupons | D61: 600 | E61: 600 | F61: 600 | G61: 600 | H61: 600 | I61: 600 | J61: 600 | K61: 600 | L61: 600 | M61: 600 | N61: 600 | O61: 600 | Q61: =SUM('Channel Marketing Budget'!$D61:$O61) -> 7,200.00
B62: CAR Total $(000) | D62: =SUM(D59:D61) -> 900.00 | E62: =SUM(E59:E61) -> 900.00 | F62: 900.00 | G62: 900.00 | H62: 900.00 | I62: 900.00 | J62: 900.00 | K62: 900.00 | L62: 900.00 | M62: 900.00 | N62: 900.00 | O62: 900.00 | Q62: =SUM(Q59:Q61) -> 10,800.00
B63: OTHER EXPENSE ITEMS | C63: Rate | D63: Month 1 | E63: Month 2 | F63: Month 3 | G63: Month 4 | H63: Month 5 | I63: Month 6 | J63: Month 7 | K63: Month 8 | L63: Month 9 | M63: Month 10 | N63: Month 11 | O63: Month 12
B64: OTHER EXPENSES
B65: Travel | D65: 50 | E65: 50 | F65: 50 | G65: 50 | H65: 50 | I65: 50 | J65: 50 | K65: 50 | L65: 50 | M65: 50 | N65: 50 | O65: 50 | Q65: =SUM('Channel Marketing Budget'!$D65:$O65) -> 600.00
B66: Infrastructure (computer, telephone, etc.) | D66: 250.00 | E66: 250.00 | F66: 250.00 | G66: 250.00 | H66: 250.00 | I66: 250.00 | J66: 250.00 | K66: 250.00 | L66: 250.00 | M66: 250.00 | N66: 250.00 | O66: 250.00 | Q66: =SUM('Channel Marketing Budget'!$D66:$O66) -> 3,000.00
B67: Channel Support | D67: 600 | E67: 600 | F67: 600 | G67: 600 | H67: 600 | I67: 600 | J67: 600 | K67: 600 | L67: 600 | M67: 600 | N67: 600 | O67: 600 | Q67: =SUM('Channel Marketing Budget'!$D67:$O67) -> 7,200.00
B68: Other Expenses Total $(000) | D68: =SUM(D65:D67) -> 900.00 | E68: =SUM(E65:E67) -> 900.00 | F68: 900.00 | G68: 900.00 | H68: 900.00 | I68: 900.00 | J68: 900.00 | K68: 900.00 | L68: 900.00 | M68: 900.00 | N68: 900.00 | O68: 900.00 | Q68: =SUM(Q65:Q67) -> 10,800.00
B70: TOTAL MARKETING BUDGET: | D70: =SUM(D34,AgentAndBroker[[#Totals],[Month 1]],Dstributors[[#Totals],[Month 1]],Retailer[[#Totals],[Month 1]],CAR[[#Totals],[Month 1]],OtherExpenses[[#Totals],[Month 1]]) -> 6,354.00 | E70: =SUM(OtherExpenses[[#Totals],[Month 2]],CAR[[#Totals],[Month 2]],Retailer[[#Totals],[Month 2]],Dstributors[[#Totals],[Month 2]],AgentAndBroker[[#Totals],[Month 2]],E34) -> 5,785.85 | F70: =SUM(OtherExpenses[[#Totals],[Month 3]],CAR[[#Totals],[Month 3]],Retailer[[#Totals],[Month 3]],Dstributors[[#Totals],[Month 3]],AgentAndBroker[[#Totals],[Month 3]],F34) -> 5,834.44 | G70: =SUM(OtherExpenses[[#Totals],[Month 4]],CAR[[#Totals],[Month 4]],Retailer[[#Totals],[Month 4]],Dstributors[[#Totals],[Month 4]],AgentAndBroker[[#Totals],[Month 4]],G34) -> 5,902.05 | H70: =SUM(OtherExpenses[[#Totals],[Month 5]],CAR[[#Totals],[Month 5]],Retailer[[#Totals],[Month 5]],Dstributors[[#Totals],[Month 5]],AgentAndBroker[[#Totals],[Month 5]],H34) -> 5,916.35 | I70: =SUM(OtherExpenses[[#Totals],[Month 6]],CAR[[#Totals],[Month 6]],Retailer[[#Totals],[Month 6]],Dstributors[[#Totals],[Month 6]],AgentAndBroker[[#Totals],[Month 6]],I34) -> 5,935.69 | J70: =SUM(OtherExpenses[[#Totals],[Month 7]],CAR[[#Totals],[Month 7]],Retailer[[#Totals],[Month 7]],Dstributors[[#Totals],[Month 7]],AgentAndBroker[[#Totals],[Month 7]],J34) -> 5,976.90 | K70: =SUM(OtherExpenses[[#Totals],[Month 8]],CAR[[#Totals],[Month 8]],Retailer[[#Totals],[Month 8]],Dstributors[[#Totals],[Month 8]],AgentAndBroker[[#Totals],[Month 8]],K34) -> 6,015.84 | L70: =SUM(OtherExpenses[[#Totals],[Month 9]],CAR[[#Totals],[Month 9]],Retailer[[#Totals],[Month 9]],Dstributors[[#Totals],[Month 9]],AgentAndBroker[[#Totals],[Month 9]],L34) -> 6,031.80 | M70: =SUM(OtherExpenses[[#Totals],[Month 10]],CAR[[#Totals],[Month 10]],Retailer[[#Totals],[Month 10]],Dstributors[[#Totals],[Month 10]],AgentAndBroker[[#Totals],[Month 10]],M34) -> 6,001.80 | N70: =SUM(OtherExpenses[[#Totals],[Month 11]],CAR[[#Totals],[Month 11]],Retailer[[#Totals],[Month 11]],Dstributors[[#Totals],[Month 11]],AgentAndBroker[[#Totals],[Month 11]],N34) -> 6,056.80 | O70: =SUM(OtherExpenses[[#Totals],[Month 12]],CAR[[#Totals],[Month 12]],Retailer[[#Totals],[Month 12]],Dstributors[[#Totals],[Month 12]],AgentAndBroker[[#Totals],[Month 12]],O34) -> 6,001.80 | Q70: =Q72 -> 0.00
